Cogmind - Beta 15 @@@ ROGUE MODE // 2025.06.08 @ 16:52:06 Player: Savant Result: Destroyed by G-47 Trooper with Particle Gun Performance ------------- Evolutions (0) 0 Regions Visited (2) 400 Robots Destroyed (22) 110 Value Destroyed (528) 528 Prototype IDs (0) 0 Alien Tech Used (0) 0 Bonus (0) 0 TOTAL SCORE: 1038 Bonus ------- None Cogmind --------- Core Integrity 0/250 Matter 119/300 Energy 157/250 System Corruption 1% Temperature Cool (29) Movement Treading (160) Location -10/Mines Parts ------- > --- POWER (1) -------- Ion Engine > --- PROPULSION (2) --- Light Treads Light Treads > --- UTILITY (2) ------ Large Storage Unit Seismic Detector > --- WEAPON (2) ------- Assault Rifle Light Cannon > --- INVENTORY (15) --- Ion Engine Light Ion Engine Light Treads Aluminum Leg Aluminum Leg Wheel Compact Wheel Huge Storage Unit Structural Scanner Improved Terrain Scanner Small Laser Mining Laser Mining Claw Peak State ------------ > --- POWER ------------ Light Ion Engine > --- PROPULSION ------- Light Treads Light Treads > --- UTILITY ---------- Small Storage Unit Seismic Detector > --- WEAPON ----------- Medium Laser Assault Rifle > --- INVENTORY -------- Light Ion Engine Aluminum Leg Aluminum Leg Wheel Compact Wheel Improved Terrain Scanner Small Laser Mining Laser [Rating: 8] Favorites ----------- Power Light Ion Engine Engine Light Ion Engine Propulsion Light Treads Treads Light Treads Utility Seismic Detector Device Seismic Detector Storage Large Storage Unit Weapon Assault Rifle Energy Gun Medium Laser Ballistic Gun Assault Rifle Ballistic Cannon Light Cannon Slashing Weapon Mining Claw Build | -11 -10 -10 ------- Run | Yrd Mat Min Slots Evolved . | . . . Power . | . . . Propulsion . | . . . Utility . | . . . Weapon . | . . . Parts Attached 15 | 7 6 2 Power 2 | 1 1 . Engine 2 | 1 1 . Core . | . . . Reactor . | . . . Propulsion 4 | 2 . 2 Treads 4 | 2 . 2 Leg . | . . . Wheel . | . . . Hover . | . . . Flight . | . . . Utility 4 | 2 2 . Device 1 | 1 . . Storage 3 | 1 2 . Processor . | . . . Hackware . | . . . Protection . | . . . Artifact . | . . . Weapon 5 | 2 3 . Energy Gun 1 | 1 . . Energy Cannon . | . . . Ballistic Gun 2 | 1 1 . Ballistic Cannon 1 | . 1 . Launcher . | . . . Special Weapon . | . . . Impact Weapon . | . . . Slashing Weapon 1 | . 1 . Piercing Weapon . | . . . Special Melee Weapon . | . . . Unidentified Prototypes . | . . . Parts Lost 3 | . 1 2 Power . | . . . Propulsion 2 | . . 2 Utility . | . . . Weapon 1 | . 1 . Highest Loss Streak 2 | . 1 2 To Critical Strikes . | . . . Average Backups 10 | 3 11 14 Power 1 | . 1 2 Propulsion 4 | 2 4 6 Utility 2 | . 2 3 Weapon 2 | . 3 3 Tool/Special . | . . . Unused Backups 12 | . . 12 Power 2 | . . 2 Propulsion 5 | . . 5 Utility 3 | . . 3 Weapon 2 | . . 2 Tool/Special . | . . . Average Slot Usage (%) 99 | . 99 88 Engine 13 | . 13 14 Treads 27 | . 27 16 Device 14 | . 14 14 Storage 14 | . 14 14 Energy Gun 10 | . 11 . Ballistic Gun 14 | . 14 14 Ballistic Cannon 1 | . . 14 Slashing Weapon 1 | . 2 . Peak Build Rating 8 | 8 8 8 Average Rating 7 | 5 7 7 On Entrance 5 | . 8 8 Naked Turns . | . . . Heaviest Build 31 | 13 31 . Greatest Support 40 | 40 40 . Greatest Overweight (x) 1 | . 1 . Average Overweight (x) . | . . . Largest Inventory Capacity 15 | 8 15 15 Average Capacity 14 | 7 14 15 Most Carried 15 | 8 15 15 Average Carried 10 | 3 11 14 Final Capacity 15 | 8 15 15 Final Carried 15 | 8 15 13 Class Distribution -------------------- 100% | Mutant Dominant Class ---------------- Mutant | -10/Materials Mutant | -10/Mines Resources | -11 -10 -10 ----------- Run | Yrd Mat Min Matter Collected 587 | 200 387 . Remotely . | . . . Salvage Created 585 | 16 555 14 Parts 38 | 5 31 2 Haulers Intercepted . | . . . Recyclers Shooed . | . . . Parts Field Recycled . | . . . Retrieved Matter . | . . . Parts Self-Destructed . | . . . Prevented . | . . . Kills | -11 -10 -10 ------- Run | Yrd Mat Min Combat Hostiles Destroyed 17 | . 16 1 Guns 15 | . 14 1 Cannons 2 | . 2 . Classes Destroyed 5 | 1 4 . Tunneler 1 | 1 . . Operator 1 | . 1 . Watcher 3 | . 3 . Swarmer 6 | . 6 . Grunt 11 | . 10 1 Best Kill Streak 4 | 1 4 1 Combat Bots Only 3 | . 3 1 Max Kills in Single Turn 1 | 1 1 1 Gunslinging . | . . . Exploded . | . . . Melee . | . . . Uniques/NPCs Destroyed . | . . . Combat | -11 -10 -10 -------- Run | Yrd Mat Min Hostile Shots Fired 106 | . 78 28 Missed 22 | . 17 5 Hits 84 | . 61 23 Projectile 84 | . 61 23 Damage Taken 935 | . 628 307 Core 251 | . 147 104 Absorbed by Shields . | . . . Core Remaining (%) 100 | 100 . . Volleys Fired 77 | 1 65 11 Largest 2 | 2 2 2 Hottest 70 | 70 70 50 Shots Fired 148 | 2 124 22 Gun 132 | 2 119 11 Cannon 16 | . 5 11 Launcher . | . . . Special . | . . . Kinetic 92 | 1 69 22 Thermal 56 | 1 55 . Explosive . | . . . Electromagnetic . | . . . Robot Hit Streak 10 | 1 9 10 Robot Miss Streak 5 | . 5 1 Penetration Max . | . . . Secondary Targets 2 | . 2 . Max Gunslinging Chain 1 | . 1 . Shots Hit Robots 100 | 1 80 19 Core Hits 35 | 1 30 4 Critical Kills . | . . . Critical Parts Destroyed . | . . . Critical Strikes 8 | . 8 . Burn 7 | . 7 . Blast 1 | . 1 . Melee Attacks 10 | . 10 . Impact . | . . . Slashing 10 | . 10 . Piercing . | . . . Sneak Attacks 3 | . 3 . Combat Hostiles . | . . . Follow-up Attacks . | . . . Damage Inflicted 1458 | 10 1176 272 Guns 1053 | 10 912 131 Cannons 229 | . 88 141 Explosions . | . . . Melee 162 | . 162 . Ramming 14 | . 14 . Kinetic 901 | 10 619 272 Thermal 381 | . 381 . Explosive . | . . . Electromagnetic . | . . . Impact . | . . . Slashing 162 | . 162 . Piercing . | . . . Highest Corruption 1 | . 1 1 Average Corruption 1 | . 1 1 Corruption Purged . | . . . Corruption Blocked . | . . . Effects 1 | . . 1 Energy Discharges 1 | . . 1 Overload Shots . | . . . Overflow Damage 28 | . 18 10 Projectiles 10 | . . 10 Explosions . | . . . Melee 18 | . 18 . Knockbacks 1 | . 1 . Impact . | . . . Kinetic 1 | . 1 . Secondary . | . . . Self-Inflicted Damage . | . . . Shots . | . . . Rammed 3 | . 3 . Targets Rammed 3 | . 3 . Kicked . | . . . Crushed . | . . . Highest Temperature 180 | 9 180 50 Average Temperature 49 | 6 52 35 Received Heat Transfer 426 | . 249 177 Siege Activations . | . . . Martial Activations . | . . . Shielding Activations . | . . . Robots Disrupted . | . . . Combat Hostiles . | . . . Robots Corrupted . | . . . Combat Hostiles . | . . . Parts Fried . | . . . Impact Corruptions . | . . . Robots Melted . | . . . Combat Hostiles . | . . . Parts Melted 7 | . 7 . Heat Transferred 1628 | . 1628 . Parts Sabotaged . | . . . Parts Stolen . | . . . Parts Stripped . | . . . Power Chain Reactions . | . . . Alert | -11 -10 -10 ------- Run | Yrd Mat Min Maximum Alert Level . | . . . Low Security (%) 100 | 100 100 100 Level 1 . | . . . Level 2 . | . . . Level 3 . | . . . Level 4 . | . . . Level 5 . | . . . High Security . | . . . Max Security . | . . . Peak Influence 145 | 5 145 49 Initial 49 | . . 49 Average 41 | . 44 39 Influence Increases 499 | 5 474 20 Destroy 0b10 Robot/C 340 | . 320 20 Destroy 0b10 Robot/NC 25 | 5 20 . Destroy Leader 76 | . 76 . Successful Hack 9 | . 9 . Select Force Hacks 30 | . 30 . Disable Machine 15 | . 15 . Destroy Structure 4 | . 4 . Influence Decreases 460 | 5 345 110 Entered New Map 80 | . . 80 Time Decay 350 | 5 335 10 Lost Part 30 | . 10 20 Squads Dispatched 4 | . 4 . Investigation 2 | . 2 . Extermination . | . . . Reinforcement 2 | . 2 . Assault . | . . . Garrison . | . . . Intercept . | . . . Searches Triggered . | . . . Construction Impeded . | . . . Haulers Reinforced . | . . . Active Scanning Responses . | . . . Cargo Convoy Interrupts . | . . . Stealth | -11 -10 -10 --------- Run | Yrd Mat Min Distress Signals 1 | . 1 . Communications Jammed . | . . . Distress Signals . | . . . Times Spotted 23 | . 21 2 Peak Tracking Total 4 | . 4 2 Tactical Retreats . | . . . Traps | -11 -10 -10 ------- Run | Yrd Mat Min Traps Triggered 3 | . 3 . Indirectly . | . . . Trap Hack Attempts . | . . . Triggered . | . . . Disarmed . | . . . Reprogrammed . | . . . Reused . | . . . Traps Extracted . | . . . Installed . | . . . Triggered . | . . . Machines | -11 -10 -10 ---------- Run | Yrd Mat Min Machines Disabled 1 | . 1 . Max in Single Turn 1 | . 1 . Machines Repaired . | . . . Machines Dismantled . | . . . Machines Sabotaged . | . . . Overloaded Fab Kills . | . . . Hacking | -11 -10 -10 --------- Run | Yrd Mat Min Machines Accessed 5 | . 5 . Terminals 4 | . 4 . Fabricators . | . . . Repair Stations . | . . . Recycling Units 1 | . 1 . Scanalyzers . | . . . Garrison Access . | . . . Total Hacks 14 | . 14 . Successful 7 | . 7 . Failed 7 | . 7 . Catastrophic . | . . . Database Lockouts . | . . . Manual 12 | . 12 . Terminals 13 | . 13 . Fabricators . | . . . Repair Stations . | . . . Recycling Units 1 | . 1 . Scanalyzers . | . . . Garrison Access . | . . . Terminal Hacks 2 | . 2 . Locate Traps 1 | . 1 . Zone Layout 1 | . 1 . Fabricator Hacks . | . . . Repair Station Hacks . | . . . Recycling Unit Hacks . | . . . Scanalyzer . | . . . Garrison Access Hacks . | . . . Unauthorized Hacks 5 | . 5 . Terminals 4 | . 4 . Botnet 1 | . 1 . Skim 3 | . 3 . Fabricators . | . . . Repair Stations . | . . . Recycling Units 1 | . 1 . Tunnel 1 | . 1 . Scanalyzers . | . . . Garrison Access . | . . . Data Cores Recovered . | . . . Used . | . . . Hacking Detections 4 | . 4 . Full Trace Events . | . . . Feedback Events . | . . . Feedback Blocked . | . . . Robot Schematics Acquired . | . . . Robots Built . | . . . Authchips . | . . . Time . | . . . Total Robot Build Rating . | . . . Part Schematics Acquired . | . . . Parts Built . | . . . Authchips . | . . . Time . | . . . Total Part Build Rating . | . . . Parts Repaired . | . . . Time . | . . . Parts Recycled . | . . . Recycled Matter . | . . . Retrieved Matter . | . . . Retrieved Components . | . . . Parts Scanalyzed . | . . . Part Schematics Acquired . | . . . Parts Damaged . | . . . Bothacking | -11 -10 -10 ------------ Run | Yrd Mat Min Used RIF Installer . | . . . Robots Hacked . | . . . Non-combat . | . . . Combat . | . . . Robot Hacks Applied . | . . . Relay Couplers Released . | . . . Fabnet Peak Effective % . | . . . Robots Rewired . | . . . Allies Hacked . | . . . Hacks Repelled . | . . . Allies | -11 -10 -10 -------- Run | Yrd Mat Min Total Allies . | . . . Largest Group . | . . . Highest-Rated Group . | . . . Highest-Rated Ally . | . . . Total Orders . | . . . Ally Attacks . | . . . Total Damage . | . . . Kills . | . . . Allies Corrupted . | . . . Allies Melted . | . . . Intel | -11 -10 -10 ------- Run | Yrd Mat Min Active Infowar (turns) 1616 | 18 1564 34 Seismic 1616 | 18 1564 34 Robot Analysis Total . | . . . Derelict Logs Recovered . | . . . Drone Launches . | . . . Drone Recoveries . | . . . Exploration | -11 -10 -10 ------------- Run | Yrd Mat Min Turns Passed 1690 | 92 1564 34 Spaces Moved 761 | 47 714 . Core 5 | 5 . . Treads 756 | 42 714 . Legs . | . . . Wheels . | . . . Hover . | . . . Flight . | . . . Fastest Speed 50 | 50 160 . Average Speed 159 | 148 160 . Slowest Speed 240 | 160 240 . Overloaded Moves . | . . . Propulsion Burnouts . | . . . Robots Hopped . | . . . Potential Cave-ins . | . . . Cave-ins Triggered . | . . . Exploration Rate (%) 31 | 4 86 4 Regions Visited 2 Branch Regions 1 Pre-discovered Areas 1 | . 1 . Known Exits Taken . | . . . Unknown Exits Taken 2 | 1 1 . Scrap Searched . | . . . Spaces Dug 4 | . 4 . Terrain Destroyed 4 | . 4 . Melee 4 | . 4 . Projectile . | . . . AOE . | . . . Terrain Rammed . | . . . Walls Destroyed . | . . . Machines Disabled . | . . . Actions | -11 -10 -10 --------- Run | Yrd Mat Min Total 1059 | 64 982 13 Wait 158 | 1 157 . Move 759 | 46 713 . Hop . | . . . Pick Up 18 | 9 9 . Fast Attach 9 | 6 3 . Attach 4 | 1 1 2 Detach . | . . . Swap 17 | . 17 . Drop 4 | . 4 . Fire 77 | 1 65 11 Melee 10 | . 10 . Ram . | . . . Kick . | . . . Crush 3 | . 3 . Escape Stasis . | . . . Rewire . | . . . Trap . | . . . Miscellaneous . | . . . Route ------- -11/Scrapyard -10/Materials (discovered 5 exits: [*Mat x3] / [*Min] / [*Sub]) -10/Mines History --------- Turn | Location | Event 9 | -11/Scrapyard | Discovered new exit (range 16) 93 | -11/Scrapyard | Entered Materials 281 | -10/Materials | Discovered new exit (range 9) 301 | -10/Materials | Build established: Mutant 355 | -10/Materials | Discovered new exit (range 11) 740 | -10/Materials | Discovered new exit (range 13) 986 | -10/Materials | Discovered new exit (range 8) 1489 | -10/Materials | Discovered new exit (range 9) 1648 | -10/Materials | Core integrity fell below 50% 1657 | -10/Materials | Entered Mines 1668 | -10/Mines | Core integrity fell below 20% 1691 | -10/Mines | Destroyed by G-47 Trooper with Particle Gun Last Messages --------------- 01592_ K-01 Serf collects debris. 01594_ Acquired 39 matter. 01595_ K-01 Serf collects debris. 01597_ Acquired 5 matter. 01598_ K-01 Serf collects debris. 01606_ Slammed into U-05 Engineer. 01606_ R-06 Scavenger collects Aluminum Leg. 01609_ K-01 Serf collects debris. 01610_ R-06 Scavenger collects Sml. Laser. 01614_ K-01 Serf collects debris. 01617_ R-06 Scavenger collects Aluminum Leg. 01647_ Triggered EMP Trap. 01647_ A bubble of electromagnetic force engulfs the area. 01647_ Door malfunctions. LOCATION=UNKNOWN GOAL=ESCAPE 01666_ Destroyed Ion Engine. 01667_ Lgt. Treads destroyed. 01676_ G-34 Mercenary destroyed. 01690_ System corrupted: Energy discharge (-82). Map ----- +----------------------------------------------------+ | | | | | | | | | | | | | | | | | | | | | | | | | | | | | | | ?????????????????????????????????????????? | | ?????????????????????????????????????????? | | ?????????????????????????????????????????? | | ?????????????????????????????????????????? | | ?????????????????????????????????????????? | | ?????????????????????????????????????????? | | ?????????????###??###????????????????????? | | ?????????????# ## ##???????????????????? | | ?????????????#% g%#???????????????????? | | ??????????????# ! #???????????????????? | | ???????????????#%@ #????????????????????? | | ???????????????# ##????????????????????? | | ???????????????# %##?????????????????????? | | ???????????????# #??????????????????????? | | ???????????????# $#??????????????????????? | | ???????????????# #??????????????????????? | | ???????????????# #??????????????????????? | | ???????????????# #??????????????????????? | | ???????????????# ??????????????????????? | | ???????????????# ??????????????????????? | | ???????????????# ??????????????????????? | | ??????????????? ??????????????????????? | | ??????????????? ??????????????????????? | | ??????????????? ??????????????????????? | | ??????????????? ??????????????????????? | | ???????????????####??????????????????????? | | ?????????????????????????????????????????? | | ?????????????????????????????????????????? | | ?????????????????????????????????????????? | | ?????????????????????????????????????????? | | ?????????????????????????????????????????? | | ?????????????????????????????????????????? | | ?????????????????????????????????????????? | | ?????????????????????????????????????????? | | ?????????????????????????????????????????? | +----------------------------------------------------+ Best States ------------- Heat Dissipation 25 Energy Generation 10 Energy Capacity 250 Matter Stores 300 Matter Capacity 300 Sight Range 16 Terrain Scan Density 10 Evasion (%) 40 Recoil Reduction 2 Item Schematics ----------------- None Robot Schematics ------------------ None Fabricated ------------ Nothing Repaired ---------- Nothing Alien Tech Used ----------------- None Achievements -------------- None Challenges ------------ None Game ------ Seed BlastDisruptorChainsword Manual? 0 Play Time 00:11:09 Cumulative 946.8 hours Start 2025.06.08 @ 16:41:08 End 2025.06.08 @ 16:52:06 Sessions 1 Manual Loads 0 Difficulty Rogue Special Mode None Game No. 177 Rogue 177 Adventurer 0 Explorer 0 Win Type - Total 53 Types 23/4/9/1/3/1/6/3/2/1 Lore% 90 Gallery% 92 Achievement% 91 Wizard Run 0 Options --------- Layout 0 ASCII 0 Keyboard 0 Movement Numpad Keybinds 0 Fullscreen 1 Font 18/SmallcapsGlow Map View 76x50 Zoom Use 0% Tactical HUD 1 Map Filters NONE Filters NONE Steam 1 RUN: 91965673-2cda-4d5d-8324-788bf136c8a4